Body Name,Service Area Categorisation,Responsible Unit,Expenses Type,Date,Transaction number,Amount,Supplier Name,Card payment,
Fenland District Council,Environment Services,Cemeteries,Premises Costs,19/06/2018,20194423,"2,369.85 ",A & R Wright Consulting Ltd T/A Wright Consulting,,
Fenland District Council,Trading,Marine Services,Supplies and Services,27/06/2018,20195164,"2,800.00 ",A1 Engraving Ltd,,
Fenland District Council,Housing Grants,Capital Services,Capital Costs,06/06/2018,20194592,"5,460.95 ",Accent Group,,
Fenland District Council,Housing Grants,Capital Services,Capital Costs,06/06/2018,20194593,974.91 ,Accent Group,,
Fenland District Council,Housing Grants,Capital Services,Capital Costs,06/06/2018,20194594,966.36 ,Accent Group,,
Fenland District Council,Car Parks,Capital Services,Capital Costs,27/06/2018,20195009,"8,100.00 ",Adc (East Anglia) Ltd,,
Fenland District Council,Cultural and Related Services,Leisure Centres,Premises Costs,19/06/2018,20194795,"3,033.85 ",Adcock Refrigeration & Air Conditioning Ltd,,
Fenland District Council,Support Services,Vehicle Workshop & Transport,Transport Costs,19/06/2018,20194670,"1,579.96 ",AEBI Schmidt Uk Limited,,
Fenland District Council,Support Services,Vehicle Workshop & Transport,Transport Costs,27/06/2018,20195247,568.84 ,AEBI Schmidt Uk Limited,,
Fenland District Council,Support Services,Vehicle Workshop & Transport,Transport Costs,19/06/2018,20194756,718.58 ,Allstar Business Solutions Ltd,,
Fenland District Council,Housing General Fund Services,Travellers Services,Premises Costs,27/06/2018,20195275,"2,776.32 ",Anglian Water,,
Fenland District Council,Cultural and Related Services,Leisure Centres,Premises Costs,06/06/2018,20194630,"1,042.15 ",Anglian Water Business Ltd (National),,
Fenland District Council,Cultural and Related Services,Leisure Centres,Premises Costs,11/06/2018,20194704,"1,457.20 ",Anglian Water Business Ltd (National),,
Fenland District Council,Housing General Fund Services,Travellers Services,Premises Costs,19/06/2018,20194763,565.66 ,Anglian Water Business Ltd (National),,
Fenland District Council,Support Services,The Base,Premises Costs,27/06/2018,20195254,853.00 ,Anglian Water Business Ltd (National),,
Fenland District Council,Trading,Economic Estates,Premises Costs,27/06/2018,20195255,514.50 ,Anglian Water Business Ltd (National),,
Fenland District Council,Support Services,Fenland Hall,Premises Costs,19/06/2018,20194867,"3,861.39 ",Assa Abloy Entrance Systems Ltd,,
Fenland District Council,Housing General Fund Services,Homeless Persons,Supplies and Services,06/06/2018,20194529,700.00 ,Attik Property Services,,
Fenland District Council,Support Services,Customer First,Supplies and Services,27/06/2018,20194572,532.35 ,Banking Automation Limited,,
Fenland District Council,Cultural and Related Services,Leisure Centres,Premises Costs,19/06/2018,20194771,696.20 ,Barnet Pool Maintenance Limited,,
Fenland District Council,Cultural and Related Services,Leisure Centres,Premises Costs,19/06/2018,20194862,"1,530.00 ",Barnet Pool Maintenance Limited,,
Fenland District Council,Support Services,Human Resources,Third Party Payments,19/06/2018,20194899,"1,796.55 ",Bedford Borough Council,,
Fenland District Council,Housing General Fund Services,Travellers Services,Premises Costs,27/06/2018,20195149,900.00 ,Bloom & Wake Ltd,,
Fenland District Council,Cultural and Related Services,Leisure Centres,Supplies and Services,19/06/2018,20194716,840.00 ,Bloom Procurement Services Ltd,,
Fenland District Council,Cultural and Related Services,Leisure Centres,Supplies and Services,19/06/2018,20194666,568.84 ,Boc Limited,,
Fenland District Council,Manor LC Functions Stock Account,Balance Sheet Services,Balance Sheet,06/06/2018,20194418,581.11 ,Booker Ltd,,
Fenland District Council,Manor LC Functions Stock Account,Balance Sheet Services,Balance Sheet,06/06/2018,20194419,757.08 ,Booker Ltd,,
Fenland District Council,Manor LC Functions Stock Account,Balance Sheet Services,Balance Sheet,27/06/2018,20195015,665.45 ,Booker Ltd,,
Fenland District Council,Housing Grants,Capital Services,Capital Costs,27/06/2018,20195220,"1,821.89 ",Borough Council Of Kings Lynn & West Norfolk,,
Fenland District Council,Support Services,Fenland Hall,Premises Costs,27/06/2018,20195045,540.00 ,Bourne Blinds and Flooring,,
Fenland District Council,Trading,Marine Services,Supplies and Services,19/06/2018,20194780,"2,040.00 ",Braemer Response,,
Fenland District Council,Housing General Fund Services,Housing Benefits,Supplies and Services,11/06/2018,20194539,"30,768.00 ",Breckland Council,,
Fenland District Council,Central Services,Council Tax Cost of Collection,Income,27/06/2018,20194979,"5,722.00 ",Breckland Council,,
Fenland District Council,Cultural and Related Services,Leisure Centres,Supplies and Services,19/06/2018,20194800,788.93 ,Brenntag UK Limited,,
Fenland District Council,Housing General Fund Services,Travellers Services,Supplies and Services,19/06/2018,20194746,708.60 ,Bryan Lecoche Ltd,,
Fenland District Council,Housing Grants,Capital Services,Capital Costs,06/06/2018,20194524,630.00 ,Cadent,,
Fenland District Council,Cultural and Related Services,Leisure Centres,Premises Costs,19/06/2018,20194725,793.75 ,Calbarrie Compliance Services Ltd,,
Fenland District Council,Trading,Refuse Collection - Trade,Third Party Payments,06/06/2018,20194463,"11,825.56 ",Cambridgeshire County Council,,
Fenland District Council,Support Services,Information & Communication Technology,Supplies and Services,06/06/2018,20194577,"12,970.00 ",Centerprise International Limited,,
Fenland District Council,Support Services,Accountancy,Supplies and Services,06/06/2018,20194537,"1,500.00 ",CIPFA Business Ltd,,
Fenland District Council,Housing General Fund Services,Housing Strategy,Supplies and Services,19/06/2018,20194747,"5,053.87 ",Civica UK Limited,,
Fenland District Council,Planning Services,Community Events,Supplies and Services,19/06/2018,20194866,708.00 ,Clanpress (Kings Lynn) Ltd,,
Fenland District Council,Housing Grants,Capital Services,Capital Costs,19/06/2018,20194739,"1,288.00 ",Clarion Housing,,
Fenland District Council,Housing Grants,Capital Services,Capital Costs,19/06/2018,20194740,"2,542.63 ",Clarion Housing,,
Fenland District Council,Housing Grants,Capital Services,Capital Costs,19/06/2018,20194741,"1,930.00 ",Clarion Housing,,
Fenland District Council,Environment Services,Pollution Reduction,Employee Costs,06/06/2018,20194461,"6,276.66 ",Comensura Limited,,
Fenland District Council,Environment Services,Refuse Collection - Domestic,Employee Costs,11/06/2018,20194678,"8,301.89 ",Comensura Limited,,
Fenland District Council,Environment Services,Refuse Collection - Domestic,Employee Costs,11/06/2018,20194679,"7,189.91 ",Comensura Limited,,
Fenland District Council,Housing General Fund Services,Homeless Persons,Employee Costs,11/06/2018,20194680,-795.81 ,Comensura Limited,,
Fenland District Council,Environment Services,Refuse Collection - Domestic,Employee Costs,27/06/2018,20195137,"4,583.56 ",Comensura Limited,,
Fenland District Council,Environment Services,Pollution Reduction,Employee Costs,27/06/2018,20195138,"5,612.03 ",Comensura Limited,,
Fenland District Council,Payments in Advance,Balance Sheet Services,Balance Sheet,22/06/2018,20194641,650.00 ,Redacted - Personal data,,
Fenland District Council,Support Services,Vehicle Workshop & Transport,Transport Costs,06/06/2018,20194624,776.96 ,Dennis Eagle,,
Fenland District Council,Support Services,Vehicle Workshop & Transport,Transport Costs,19/06/2018,20194813,557.62 ,Dennis Eagle,,
Fenland District Council,Support Services,Vehicle Workshop & Transport,Transport Costs,19/06/2018,20194820,628.28 ,Dennis Eagle,,
Fenland District Council,Support Services,Vehicle Workshop & Transport,Transport Costs,19/06/2018,20194907,-687.51 ,Dennis Eagle,,
Fenland District Council,Cultural and Related Services,Sports Development,Supplies and Services,19/06/2018,20194785,600.00 ,Discovering March Ltd,,
Fenland District Council,Housing Grants,Capital Services,Capital Costs,27/06/2018,20195123,"2,000.00 ",Redacted - Personal data,,
Fenland District Council,Environment Services,Cemeteries,Premises Costs,06/06/2018,20194357,"2,480.00 ",Dr Tree Ltd,,
Fenland District Council,Central Services,Elections & Electoral Registration,Supplies and Services,19/06/2018,20194901,509.66 ,dsi Billing Services Ltd,,
Fenland District Council,Central Services,Elections & Electoral Registration,Supplies and Services,27/06/2018,20195130,636.04 ,dsi Billing Services Ltd,,
Fenland District Council,Support Services,Post & Reprographics,Supplies and Services,11/06/2018,20194669,"2,856.70 ",Eastern Rent A Van & Cars (Bossretty Ltd),,
Fenland District Council,Support Services,Fenland Hall,Premises Costs,22/06/2018,20194995,"1,275.17 ",Eastern Shires Purchasing Organisation,,
Fenland District Council,Cultural and Related Services,Leisure Centres,Premises Costs,22/06/2018,20194996,"2,315.12 ",Eastern Shires Purchasing Organisation,,
Fenland District Council,Cultural and Related Services,Leisure Centres,Premises Costs,22/06/2018,20194998,"3,519.66 ",Eastern Shires Purchasing Organisation,,
Fenland District Council,Highways District,Capital Services,Capital Costs,06/06/2018,20194452,"36,937.33 ",Electrical Testing Ltd,,
Fenland District Council,Highways District,Capital Services,Capital Costs,06/06/2018,20194453,"40,543.49 ",Electrical Testing Ltd,,
Fenland District Council,Highways District,Capital Services,Capital Costs,27/06/2018,20195313,"2,503.17 ",Electrical Testing Ltd,,
Fenland District Council,Highways District,Capital Services,Capital Costs,27/06/2018,20195314,"8,942.13 ",Electrical Testing Ltd,,
Fenland District Council,Support Services,The Base,Premises Costs,19/06/2018,20194834,595.36 ,Elston Environmental Services,,
Fenland District Council,Trading,Economic Estates,Premises Costs,19/06/2018,20194835,860.40 ,Elston Environmental Services,,
Fenland District Council,Cultural and Related Services,Leisure Centres,Premises Costs,19/06/2018,20194960,800.00 ,Elston Environmental Services,,
Fenland District Council,Environment Services,Sewage Treatment Works,Premises Costs,27/06/2018,20194916,"1,780.00 ",Environment Agency,,
Fenland District Council,Multiple Services,Multiple Services,Premises Costs,27/06/2018,20194920,"11,941.00 ",Environment Agency,,
Fenland District Council,Trading,Marine Services,Supplies and Services,27/06/2018,20195165,680.00 ,Eye Co. Limited,,
Fenland District Council,"Highways, Roads and Transportation Services",Transport Development,Supplies and Services,19/06/2018,20194798,"5,038.00 ",Fact Ltd,,
Fenland District Council,Other Deductions - Admin Fees,Balance Sheet Services,Balance Sheet,06/06/2018,20194451,"1,040.00 ",Fenland Conservative Group,,
Fenland District Council,Environment Services,Public Health,Third Party Payments,06/06/2018,20194432,"1,380.00 ",Fenland Stray Dog Collection,,
Fenland District Council,Environment Services,Pollution Reduction,Supplies and Services,27/06/2018,20194714,"1,028.00 ",Fenland Stray Dog Collection,,
Fenland District Council,Environment Services,Public Health,Third Party Payments,27/06/2018,20195067,"1,380.00 ",Fenland Stray Dog Collection,,
Fenland District Council,"Highways, Roads and Transportation Services",Highways (District),Supplies and Services,19/06/2018,20194520,915.90 ,Filcris Limited,,
Fenland District Council,Planning Services,HLF - High St Wisbech,Supplies and Services,11/06/2018,20193856,700.00 ,Forgotten Heritage Limited,,
Fenland District Council,Housing Grants,Capital Services,Capital Costs,27/06/2018,20195221,"5,875.22 ",Foster Property Maintenance Ltd,,
Fenland District Council,Trading,Economic Estates,Supplies and Services,27/06/2018,20192411,"1,195.00 ",Francotyp Postalia Ltd,,
Fenland District Council,Support Services,Vehicle Workshop & Transport,Transport Costs,06/06/2018,20194467,"1,108.52 ",Fuchs Lubricants (Uk) Plc,,
Fenland District Council,Housing Grants,Capital Services,Capital Costs,19/06/2018,20194742,"3,491.22 ",Futureheat Plumbing & Heating Services,,
Fenland District Council,Trading,Marine Services,Transport Costs,27/06/2018,20195309,"1,110.00 ",Gary Brown,,
Fenland District Council,Housing Grants,Capital Services,Capital Costs,06/06/2018,20194457,"2,817.00 ",Gaswise,,
Fenland District Council,Housing General Fund Services,Homeless Persons,Supplies and Services,19/06/2018,20194744,550.00 ,GL Housing Solutions Limited,,
Fenland District Council,Environment Services,Garden Waste,Supplies and Services,06/06/2018,20193072,"7,140.00 ",Goss Interactive Ltd,,
Fenland District Council,Environment Services,Garden Waste,Supplies and Services,06/06/2018,20193073,"3,540.00 ",Goss Interactive Ltd,,
Fenland District Council,Support Services,Information & Communication Technology,Supplies and Services,06/06/2018,20193121,"3,300.00 ",Goss Interactive Ltd,,
Fenland District Council,Environment Services,Garden Waste,Supplies and Services,06/06/2018,20193122,"3,540.00 ",Goss Interactive Ltd,,
Fenland District Council,Support Services,Information & Communication Technology,Supplies and Services,06/06/2018,20193123,"5,940.00 ",Goss Interactive Ltd,,
Fenland District Council,Support Services,Information & Communication Technology,Supplies and Services,06/06/2018,20193124,"20,340.00 ",Goss Interactive Ltd,,
Fenland District Council,Wind Turbines,Balance Sheet Services,Balance Sheet,27/06/2018,20195171,"3,858.50 ",Groundwork East,,
Fenland District Council,Trading,Economic Estates,Supplies and Services,06/06/2018,20194512,"1,137.00 ",H Richmond t/a The Sandwich Bar,,
Fenland District Council,Cultural and Related Services,Leisure Centres,Premises Costs,19/06/2018,20194767,720.00 ,Heat Experience Services Limited,,
Fenland District Council,Cultural and Related Services,Leisure Centres,Premises Costs,19/06/2018,20194511,"1,390.74 ",Heating & Plumbing Services (Wisbech) Ltd,,
Fenland District Council,Support Services,Fenland Hall,Premises Costs,27/06/2018,20195157,"5,853.00 ",Heating & Plumbing Services (Wisbech) Ltd,,
Fenland District Council,Support Services,Vehicle Workshop & Transport,Transport Costs,27/06/2018,20195231,705.24 ,HGV Truck & Trailer Parts,,
Fenland District Council,Housing General Fund Services,Homeless Persons,Income,28/06/2018,20195318,825.00 ,Homestead Property Management Ltd,,
Fenland District Council,Housing General Fund Services,Homeless Persons,Supplies and Services,19/06/2018,20194713,660.00 ,Huntingdonshire District Council,,
Fenland District Council,Corporate and Democratic Core,Corporate Management,Supplies and Services,11/06/2018,20193857,"1,266.66 ",Hunts Forum,,
Fenland District Council,Corporate and Democratic Core,Corporate Management,Supplies and Services,19/06/2018,20194880,"1,266.66 ",Hunts Forum,,
Fenland District Council,Support Services,Information & Communication Technology,Supplies and Services,06/06/2018,20194327,"5,367.69 ",Idox Software Limited,,
Fenland District Council,Cultural and Related Services,Leisure Centres,Supplies and Services,27/06/2018,20195046,680.00 ,Institute of Swimming,,
Fenland District Council,Support Services,Vehicle Workshop & Transport,Transport Costs,06/06/2018,20194460,589.00 ,Intercounty Truck & Van Ltd,,
Fenland District Council,Cultural and Related Services,Sports Development,Premises Costs,19/06/2018,20193486,"5,865.68 ",ISS Facility Services,,
Fenland District Council,Cultural and Related Services,Sports Development,Premises Costs,19/06/2018,20193981,"2,932.80 ",ISS Facility Services,,
Fenland District Council,Cultural and Related Services,Recreation Grounds & Allotments,Premises Costs,06/06/2018,20194372,"10,000.00 ",ISS Facility Services,,
Fenland District Council,Cultural and Related Services,Recreation Grounds & Allotments,Premises Costs,06/06/2018,20194373,"10,000.00 ",ISS Facility Services,,
Fenland District Council,Cultural and Related Services,Recreation Grounds & Allotments,Premises Costs,06/06/2018,20194374,"10,000.00 ",ISS Facility Services,,
Fenland District Council,Cultural and Related Services,Recreation Grounds & Allotments,Premises Costs,19/06/2018,20194375,"51,198.65 ",ISS Facility Services,,
Fenland District Council,Cultural and Related Services,Recreation Grounds & Allotments,Premises Costs,06/06/2018,20194440,"1,449.00 ",ISS Facility Services,,
Fenland District Council,Cultural and Related Services,Recreation Grounds & Allotments,Premises Costs,06/06/2018,20194441,508.80 ,ISS Facility Services,,
Fenland District Council,Cultural and Related Services,Leisure Centres,Supplies and Services,27/06/2018,20194130,"1,300.41 ",J P Lennard Ltd,,
Fenland District Council,Environment Services,Licensing,Employee Costs,11/06/2018,20194700,"1,149.54 ",James Andrews Recruitment Solutions,,
Fenland District Council,Environment Services,Licensing,Employee Costs,19/06/2018,20194808,821.10 ,James Andrews Recruitment Solutions,,
Fenland District Council,Environment Services,Licensing,Employee Costs,19/06/2018,20194908,"1,081.12 ",James Andrews Recruitment Solutions,,
Fenland District Council,Environment Services,Licensing,Employee Costs,27/06/2018,20195139,"1,094.80 ",James Andrews Recruitment Solutions,,
Fenland District Council,Housing General Fund Services,Homeless Persons,Supplies and Services,27/06/2018,20195312,750.00 ,Just Lets Property Management Huntingdon Ltd,,
Fenland District Council,Environment Services,Streetscene,Supplies and Services,06/06/2018,20194393,"5,301.00 ",Kingdom Service Group Ltd,,
Fenland District Council,Environment Services,Streetscene,Supplies and Services,19/06/2018,20194754,"2,743.50 ",Kingdom Service Group Ltd,,
Fenland District Council,Cultural and Related Services,Recreation Grounds & Allotments,Premises Costs,27/06/2018,20194132,"3,498.87 ",Kompan Limited,,
Fenland District Council,Trading,Marine Services,Premises Costs,06/06/2018,20194397,"4,115.77 ",LCC Support Services Limited,,
Fenland District Council,Multiple Services,Multiple Services,Premises Costs,19/06/2018,20194898,"6,383.97 ",LCC Support Services Limited,,
Fenland District Council,Cultural and Related Services,Leisure Centres,Premises Costs,19/06/2018,20194801,"4,620.00 ",LCS Energy Ltd,,
Fenland District Council,Housing General Fund Services,Homeless Persons,Supplies and Services,06/06/2018,20194326,"5,950.20 ",Lighthouse Women's Aid,,
Fenland District Council,Support Services,Information & Communication Technology,Supplies and Services,19/06/2018,20194615,850.00 ,LinchPin Networks,,
Fenland District Council,Support Services,Information & Communication Technology,Supplies and Services,19/06/2018,20194664,887.50 ,LinchPin Networks,,
Fenland District Council,Corporate and Democratic Core,Corporate Management,Supplies and Services,19/06/2018,20194821,"3,918.75 ",Link Treasury Services Limited,,
Fenland District Council,Cultural and Related Services,Sports Development,Employee Costs,19/06/2018,20194863,"7,500.00 ",Living Sport,,
Fenland District Council,Trading,Economic Estates,Supplies and Services,11/06/2018,20194608,532.50 ,Loafers,,
Fenland District Council,Trading,Marine Services,Third Party Payments,27/06/2018,20195128,533.72 ,M & M Services,,
Fenland District Council,Cultural and Related Services,Sports Development,Supplies and Services,06/06/2018,20194489,"1,058.40 ",March Athletic Club,,
Fenland District Council,Trading,Marine Services,Transport Costs,27/06/2018,20195040,"1,219.16 ",Marlex Marine Technology Ltd,,
Fenland District Council,The Base - Drinks Vending Machine,Balance Sheet Services,Balance Sheet,27/06/2018,20195310,"1,017.06 ",MARS Drinks UK Limited,,
Fenland District Council,Planning Services,Development Control,Employee Costs,06/06/2018,20194561,870.00 ,Matchtech Group Uk Limited,,
Fenland District Council,Support Services,Information & Communication Technology,Supplies and Services,06/06/2018,20194484,"35,000.00 ",Microsoft Ltd,,
Fenland District Council,Housing General Fund Services,Travellers Services,Premises Costs,11/06/2018,20194611,"1,253.10 ",Nene Property Solutions Ltd,,
Fenland District Council,Cultural and Related Services,Leisure Centres,Premises Costs,27/06/2018,20195192,720.00 ,Nene Property Solutions Ltd,,
Fenland District Council,Housing General Fund Services,Travellers Services,Premises Costs,27/06/2018,20195193,"9,987.43 ",Nene Property Solutions Ltd,,
Fenland District Council,Housing General Fund Services,Travellers Services,Premises Costs,27/06/2018,20195194,"9,991.98 ",Nene Property Solutions Ltd,,
Fenland District Council,Environment Services,Street Cleansing,Supplies and Services,19/06/2018,20194768,740.59 ,Northern Municipal Spares Ltd,,
Fenland District Council,Trading,Marine Services,Supplies and Services,27/06/2018,20195026,750.00 ,OceanWise Ltd,,
Fenland District Council,Trading,Marine Services,Third Party Payments,06/06/2018,20194589,800.00 ,Office Of Communications,,
Fenland District Council,Support Services,Customer First,Premises Costs,19/06/2018,20194815,"8,493.89 ",OpenArch Properties Ltd,,
Fenland District Council,Planning Services,Economic Development,Supplies and Services,27/06/2018,20191988,"15,666.68 ",Opportunity Peterborough Limited,,
Fenland District Council,Support Services,Information & Communication Technology,Supplies and Services,06/06/2018,20194430,"11,112.65 ",Oracle Corporation UK Limited,,
Fenland District Council,Fuel Control Account,Balance Sheet Services,Balance Sheet,22/06/2018,20194987,"35,536.52 ",Pace Fuelcare,,
Fenland District Council,Trading,Marine Services,Transport Costs,22/06/2018,20194988,"1,988.35 ",Pace Fuelcare,,
Fenland District Council,Trading,Marine Services,Transport Costs,22/06/2018,20195008,"1,986.95 ",Pace Fuelcare,,
Fenland District Council,Planning Services,Development Control,Income,27/06/2018,20195219,"2,310.00 ",Peter Humphrey Associates Ltd,,
Fenland District Council,Support Services,Legal Services,Supplies and Services,19/06/2018,20194909,"6,798.24 ",Peterborough City Council,,
Fenland District Council,Support Services,Information & Communication Technology,Supplies and Services,27/06/2018,20195048,"7,287.52 ",Phoenix Software Limited,,
Fenland District Council,Support Services,Post & Reprographics,Supplies and Services,22/06/2018,20194990,"8,008.00 ",Pitney Bowes Ltd,,
Fenland District Council,Cultural and Related Services,Recreation Grounds & Allotments,Premises Costs,19/06/2018,20194784,"2,000.00 ",PlaySmart UK,,
Fenland District Council,Support Services,Post & Reprographics,Supplies and Services,19/06/2018,20194884,669.11 ,Premier Paper Group Ltd,,
Fenland District Council,Housing General Fund Services,Travellers Services,Premises Costs,27/06/2018,20195029,900.00 ,Pro-Clean Industrial UK Ltd,,
Fenland District Council,Environment Services,CCTV,Supplies and Services,11/06/2018,20194675,"2,220.92 ",Quadrant Security Group Limited,,
Fenland District Council,Environment Services,CCTV,Supplies and Services,27/06/2018,20195151,"3,810.00 ",Quadrant Security Group Limited,,
Fenland District Council,Cultural and Related Services,Recreation Grounds & Allotments,Premises Costs,19/06/2018,20194578,"3,034.49 ",R J Warren Ltd,,
Fenland District Council,Cultural and Related Services,Recreation Grounds & Allotments,Premises Costs,19/06/2018,20194850,"3,452.52 ",R J Warren Ltd,,
Fenland District Council,Cultural and Related Services,Recreation Grounds & Allotments,Premises Costs,27/06/2018,20195189,950.00 ,R J Warren Ltd,,
Fenland District Council,Fire (Insurance Control A/C),Balance Sheet Services,Balance Sheet,27/06/2018,20195059,"19,065.00 ",Richard Masham,,
Fenland District Council,Housing General Fund Services,Travellers Services,Premises Costs,27/06/2018,20195060,"4,932.00 ",Richard Masham,,
Fenland District Council,"Highways, Roads and Transportation Services",Car Parks,Premises Costs,19/06/2018,20194517,"2,169.22 ",Ringway Infrastructure Services Ltd,,
Fenland District Council,Cultural and Related Services,Leisure Centres,Premises Costs,27/06/2018,20195146,"2,490.49 ",Ringway Infrastructure Services Ltd,,
Fenland District Council,Housing General Fund Services,Controlling Migration,Supplies and Services,19/06/2018,20194748,"34,000.00 ",Rosmini Centre Wisbech,,
Fenland District Council,Housing General Fund Services,Controlling Migration,Supplies and Services,27/06/2018,20195227,"17,000.00 ",Rosmini Centre Wisbech,,
Fenland District Council,Housing General Fund Services,Controlling Migration,Supplies and Services,27/06/2018,20195228,"17,000.00 ",Rosmini Centre Wisbech,,
Fenland District Council,Cultural and Related Services,Sports Development,Employee Costs,06/06/2018,20194272,537.39 ,S P Wright,,
Fenland District Council,Multiple Services,Multiple Services,Premises Costs,27/06/2018,20194942,990.56 ,Severn Trent Services Operations UK Ltd,,
Fenland District Council,Support Services,Human Resources,Supplies and Services,19/06/2018,20194900,"2,282.73 ",Sodexo Motivation Solutions UK Ltd,,
Fenland District Council,Housing General Fund Services,Homeless Persons,Employee Costs,27/06/2018,20194984,"4,289.05 ",South Cambridgeshire District Council,,
Fenland District Council,Manor LC Equipment Resale Stock Account,Balance Sheet Services,Balance Sheet,19/06/2018,20194736,918.55 ,Speedo International Ltd,,
Fenland District Council,Planning Services,Community Events,Premises Costs,11/06/2018,20194492,756.00 ,St John Ambulance,,
Fenland District Council,Cultural and Related Services,Leisure Centres,Premises Costs,06/06/2018,20194465,"2,288.84 ",Sterling Hydrotech Ltd,,
Fenland District Council,Environment Services,Sewage Treatment Works,Premises Costs,19/06/2018,20194715,"3,300.00 ",Strattons Liquid Waste Disposal Limited,,
Fenland District Council,Regeneration Programmes,Capital Services,Capital Costs,06/06/2018,20194540,850.00 ,Survey Solutions Utilities,,
Fenland District Council,Support Services,The Base,Premises Costs,27/06/2018,20194967,675.90 ,T & J Fire,,
Fenland District Council,Multiple Services,Multiple Services,Premises Costs,19/06/2018,20194896,716.66 ,T Clarke East Ltd,,
Fenland District Council,Multiple Services,Multiple Services,Premises Costs,19/06/2018,20194913,731.67 ,T Clarke East Ltd,,
Fenland District Council,Trading,Economic Estates,Supplies and Services,27/06/2018,20195167,791.67 ,The Ferry Project,,
Fenland District Council,Housing General Fund Services,Controlling Migration,Supplies and Services,27/06/2018,20195246,"15,781.25 ",The Ferry Project,,
Fenland District Council,Housing General Fund Services,Homeless Persons,Supplies and Services,06/06/2018,20194530,"1,655.00 ",The Property Bureau,,
Fenland District Council,Housing General Fund Services,Homeless Persons,Supplies and Services,06/06/2018,20194433,700.00 ,The Station Hotel,,
Fenland District Council,Support Services,Information & Communication Technology,Supplies and Services,27/06/2018,20195061,"10,000.00 ",TopSec Cloud Solutions,,
Fenland District Council,Cultural and Related Services,Leisure Centres,Premises Costs,19/06/2018,20194803,"1,440.41 ",Total Gas & Power Limited,,
Fenland District Council,Cultural and Related Services,Leisure Centres,Premises Costs,27/06/2018,20195069,"2,661.91 ",Total Gas & Power Limited,,
Fenland District Council,Cultural and Related Services,Leisure Centres,Premises Costs,27/06/2018,20195070,650.95 ,Total Gas & Power Limited,,
Fenland District Council,Cultural and Related Services,Leisure Centres,Premises Costs,27/06/2018,20195073,972.89 ,Total Gas & Power Limited,,
Fenland District Council,Cultural and Related Services,Leisure Centres,Premises Costs,27/06/2018,20195074,"1,032.20 ",Total Gas & Power Limited,,
Fenland District Council,Trading,Economic Estates,Premises Costs,27/06/2018,20195077,544.53 ,Total Gas & Power Limited,,
Fenland District Council,Support Services,Fenland Hall,Premises Costs,27/06/2018,20195079,"2,696.36 ",Total Gas & Power Limited,,
Fenland District Council,Trading,Economic Estates,Premises Costs,27/06/2018,20195082,"1,329.39 ",Total Gas & Power Limited,,
Fenland District Council,Trading,Economic Estates,Premises Costs,27/06/2018,20195083,"2,177.87 ",Total Gas & Power Limited,,
Fenland District Council,Trading,Economic Estates,Premises Costs,27/06/2018,20195097,575.96 ,Total Gas & Power Limited,,
Fenland District Council,Support Services,The Base,Premises Costs,27/06/2018,20195116,"1,307.12 ",Total Gas & Power Limited,,
Fenland District Council,Trading,Marine Services,Premises Costs,27/06/2018,20195242,675.79 ,Total Gas & Power Limited,,
Fenland District Council,Trading,Marine Services,Premises Costs,27/06/2018,20195243,815.66 ,Total Gas & Power Limited,,
Fenland District Council,Trading,Marine Services,Premises Costs,27/06/2018,20195244,531.42 ,Total Gas & Power Limited,,
Fenland District Council,Regeneration Programmes,Capital Services,Capital Costs,11/06/2018,20194275,882.00 ,Turner Contracting Ltd,,
Fenland District Council,Cultural and Related Services,Sports Development,Supplies and Services,19/06/2018,20194887,807.75 ,V & J Knitwear,,
Fenland District Council,Environment Services,Cemeteries,Supplies and Services,19/06/2018,20194930,"1,100.00 ",W & W G West,,
Fenland District Council,Trading,Marine Services,Premises Costs,27/06/2018,20195186,680.00 ,W C Goult,,
Fenland District Council,Support Services,Fenland Hall,Premises Costs,27/06/2018,20195147,"1,500.00 ",Walters,,
Fenland District Council,Cultural and Related Services,Leisure Centres,Premises Costs,11/06/2018,20194448,746.00 ,WDR Ltd,,
Fenland District Council,Environment Services,Refuse Collection - Domestic,Supplies and Services,27/06/2018,20193736,"3,110.00 ",Whitney Wood Ltd,,
Fenland District Council,Wind Turbines,Balance Sheet Services,Balance Sheet,06/06/2018,20194364,"1,397.00 ",Whittlesey Mud Walls Group,,
Fenland District Council,Corporate and Democratic Core,Corporate Management,Supplies and Services,27/06/2018,20195050,"6,030.00 ",Wilks Head & Eve,,
Fenland District Council,Cultural and Related Services,Sports Development,Supplies and Services,06/06/2018,20194481,"1,533.50 ",Wisbech Community Development Trust,,
Fenland District Council,Housing Grants,Capital Services,Capital Costs,06/06/2018,20194532,"1,395.00 ",Wisbech Mobility,,
Fenland District Council,Trading,Marine Services,Premises Costs,06/06/2018,20194445,"1,225.00 ",World Of Flooring Limited,,
Fenland District Council,Trading,Economic Estates,Premises Costs,19/06/2018,20194797,612.50 ,World Of Flooring Limited,,
Fenland District Council,Support Services,Fenland Hall,Premises Costs,27/06/2018,20195236,667.33 ,World Of Flooring Limited,,
Fenland District Council,Support Services,Fenland Hall,Premises Costs,27/06/2018,20195237,"1,254.30 ",World Of Flooring Limited,,
Fenland District Council,Cultural and Related Services,Recreation Grounds & Allotments,Premises Costs,06/06/2018,20194546,876.00 ,Zurich Municipal,,
Fenland District Council,Trading,Economic Estates,Premises Costs,19/06/2018,20194757,"1,000.00 ",Zurich Municipal,,
